bitfinex-derivatives/quotes_SOLF0:USTF0_20250914
["timestamp","ask_amount","ask_price","bid_price","bid_amount"]
[1757864526736,7.6,243.86,243.85,10.0682269]
[1757864527138,1.08510195,243.94,243.85,6.65]
[1757864527434,1.08510195,243.94,243.86,3.4162747]
[1757864527633,1.08510195,243.94,243.87,3.4162747]
[1757864527836,1.08510195,243.94,243.86,3.4162747]
[1757864529544,6.87,243.93,243.86,3.4162747]
[1757864531138,6.87,243.93,243.87,6.65]
[1757864531337,6.87,243.93,243.87,10.0662747]
[1757864532040,6.87,243.93,243.88,6.94]
[1757864532347,6.87,243.93,243.88,3.4162747]
[1757864532546,6.87,243.93,243.89,6.94]
[1757864532941,6.87,243.93,243.88,3.4162747]
[1757864533247,6.87,243.93,243.89,6.94]
[1757864533747,13.22,243.93,243.89,6.94]
[1757864534447,6.87,243.93,243.88,3.4162747]
[1757864535041,6.35,243.92,243.88,3.4162747]
[1757864535352,6.87,243.93,243.87,3.4162747]
[1757864535648,7.43510195,243.92,243.85,3.4162747]
[1757864535843,1.08510195,243.89,243.85,3.4162747]
[1757864536146,6.35,243.85,243.81,3.4162747]
[1757864536550,6.35,243.85,243.82,3.4162747]
[1757864538644,6.35,243.85,243.81,3.4162747]
[1757864539643,6.35,243.85,243.82,3.4162747]
[1757864539838,6.35,243.86,243.82,3.4162747]
[1757864540241,1.08510195,243.87,243.79,6.94]
[1757864540242,1.08510195,243.87,243.81,3.4162747]
[1757864540442,6.35,243.86,243.81,3.4162747]
[1757864540750,6.35,243.86,243.81,10.3562747]
[1757864541047,7.43510195,243.87,243.81,10.3562747]
[1757864541250,7.43510195,243.87,243.8,3.4162747]
[1757864542547,7.43510195,243.87,243.79,3.4162747]
[1757864543347,7.43510195,243.87,243.8,3.4162747]
[1757864543747,7.43510195,243.87,243.79,3.4162747]
[1757864545050,1.08510195,243.84,243.79,3.4162747]
[1757864545750,1.08510195,243.84,243.72,6.68546654]
[1757864545751,1.08510195,243.84,243.78,3.4162747]
[1757864546049,1.08510195,243.81,243.78,3.4162747]
[1757864546255,6.35,243.8,243.77,3.4162747]
[1757864546445,1.08510195,243.81,243.77,3.4162747]
[1757864546646,7.43510195,243.78,243.76,3.4162747]
[1757864546850,6.35,243.77,243.75,3.4162747]
[1757864547049,1.08510195,243.78,243.75,3.4162747]
[1757864547254,6.35,243.77,243.75,3.4162747]
[1757864547960,6.35,243.77,243.74,3.4162747]
[1757864548660,1.08510195,243.78,243.74,3.4162747]
[1757864548860,6.35,243.77,243.74,3.4162747]
[1757864549053,6.35,243.77,243.73,3.4162747]
[1757864549253,6.35,243.77,243.74,3.4162747]
[1757864549654,6.35,243.77,243.71,4.45697769]
[1757864549855,6.35,243.77,243.74,3.43043903]
[1757864550259,6.35,243.77,243.73,3.43043903]
[1757864550648,6.35,243.77,243.73,10.37043903]
[1757864551056,6.35,243.77,243.73,6.94]
[1757864551456,6.35,243.77,243.73,10.37043903]
[1757864552462,6.35,243.77,243.73,6.94]
[1757864552662,6.35,243.77,243.72,3.43043903]
[1757864552663,6.35,243.81,243.72,3.43043903]
[1757864554653,6.35,243.81,243.73,6.94]
[1757864554862,7.43510195,243.86,243.75,6.94]
[1757864561169,8.4,243.85,243.75,6.94]
[1757864563371,6.35,243.84,243.75,6.94]
[1757864563571,6.35,243.82,243.75,6.94]
[1757864567172,6.35,243.79,243.72,3.43043903]
[1757864572174,8.04575961,243.79,243.72,3.43043903]
[1757864572481,8.04575961,243.79,243.69,3.43043903]
[1757864572779,8.04575961,243.79,243.68,3.43043903]
[1757864573169,8.04575961,243.79,243.67,6.69]
[1757864574068,31.00575961,243.79,243.67,6.69]
[1757864574876,6.35,243.79,243.67,6.69]
[1757864575084,6.35,243.79,243.71,6.77]
[1757864576080,6.25,243.78,243.71,6.77]
[1757864585685,6.34,243.77,243.7,3.42690303]
[1757864585879,6.34,243.77,243.69,3.42690303]
[1757864586685,6.25,243.78,243.67,10.19690303]
[1757864586885,1.69575961,243.75,243.67,10.19690303]
[1757864587086,6.34,243.74,243.67,10.19690303]
[1757864587787,6.34,243.74,243.68,3.42690303]
[1757864588183,6.34,243.74,243.67,10.19690303]
[1757864588691,6.25,243.78,243.58,1.69575961]
[1757864588692,12.59,243.78,243.69,3.42690303]
[1757864588884,6.25,243.78,243.7,3.42690303]
[1757864589085,6.25,243.78,243.72,3.42690303]
[1757864590790,6.25,243.78,243.75,6.77]
[1757864591195,6.25,243.78,243.74,3.42690303]
[1757864591702,6.25,243.78,243.75,6.83]
[1757864591883,6.25,243.78,243.74,3.42690303]
[1757864592200,6.25,243.78,243.75,3.42690303]
[1757864592499,6.25,243.78,243.77,6.83]
[1757864594188,12.6,243.78,243.76,3.42690303]
[1757864594395,12.6,243.78,243.65,1.69575961]
[1757864594396,6.35,243.77,243.75,3.42690303]
[1757864594589,6.35,243.77,243.74,3.42690303]
[1757864594893,6.35,243.77,243.73,3.42690303]
[1757864596296,6.25,243.78,243.73,3.42690303]
[1757864596497,12.6,243.78,243.72,3.42690303]
[1757864598197,12.6,243.78,243.69,11.28697769]
[1757864598198,12.6,243.78,243.71,3.42690303]
[1757864599095,14.29575961,243.78,243.71,3.42690303]
[1757864599401,14.29575961,243.78,243.7,3.42690303]
[1757864600001,6.35,243.77,243.69,3.42690303]
[1757864601195,6.35,243.77,243.68,3.42690303]
[1757864601787,1.69575961,243.74,243.68,3.42690303]
[1757864601998,6.35,243.73,243.68,3.42690303]
[1757864602399,6.35,243.73,243.67,3.42690303]
[1757864605000,6.35,243.73,243.66,3.42690303]
[1757864606506,6.35,243.73,243.65,3.42690303]
[1757864606699,6.35,243.73,243.64,3.42690303]
[1757864607102,1.69575961,243.7,243.64,3.42690303]
[1757864607296,6.35,243.69,243.62,3.42690303]
[1757864607702,6.35,243.69,243.61,3.42690303]
[1757864608197,6.35,243.65,243.6,3.42690303]
[1757864608398,1.69575961,243.66,243.6,3.42690303]
[1757864609000,6.35,243.65,243.58,3.42690303]
[1757864609401,6.35,243.65,243.57,10.25690303]
[1757864609605,33.94,243.66,243.56,3.42690303]
[1757864609907,6.35,243.63,243.56,3.42690303]
[1757864610308,6.35,243.63,243.55,3.42690303]
[1757864610505,6.35,243.63,243.49,6.68546654]
[1757864610506,6.35,243.63,243.54,3.42690303]
[1757864610903,6.35,243.61,243.53,3.42690303]
[1757864611209,6.35,243.61,243.52,3.42690303]
[1757864611413,6.35,243.61,243.51,3.42690303]
[1757864611601,6.35,243.59,243.51,3.42690303]
[1757864611801,6.35,243.59,243.49,6.83]
[1757864611802,6.35,243.59,243.49,10.25690303]
[1757864612006,6.35,243.59,243.49,6.83]
[1757864614911,6.35,243.55,243.45,10.25690303]
[1757864615212,6.35,243.55,243.45,6.83]
[1757864615807,1.69575961,243.56,243.41,10.25690303]
[1757864616012,6.35,243.55,243.41,10.25690303]
[1757864616614,6.35,243.55,243.41,6.83]
[1757864617010,17.87,243.55,243.41,6.83]
[1757864617214,26.57,243.55,243.41,6.83]
[1757864617415,34.83,243.55,243.41,6.83]
[1757864620224,34.83,243.55,243.42,1.69575961]
[1757864620823,34.83,243.55,243.41,6.83]
[1757864621426,6.35,243.55,243.41,6.83]
[1757864622725,22.76431448,243.62,243.43,1.69575961]
[1757864622924,15.81,243.61,243.44,6.53]
[1757864623122,6.37,243.61,243.44,6.53]
[1757864625227,1.69575961,243.58,243.44,6.53]
[1757864625423,6.37,243.57,243.44,6.53]
[1757864630331,7.21,243.56,243.44,6.53]
[1757864631836,6.37,243.55,243.44,6.53]
[1757864632635,6.37,243.55,243.44,8.22575961]
[1757864633232,7.21,243.56,243.48,1.69575961]
[1757864633532,7.21,243.56,243.49,6.53]
[1757864633737,7.21,243.56,243.52,1.08704703]
[1757864633938,7.21,243.56,243.53,6.88]
[1757864634833,7.21,243.56,243.52,1.08704703]
[1757864635035,7.21,243.56,243.55,7.96704703]
[1757864635641,6.36,243.55,243.52,1.08704703]
[1757864635843,7.21,243.56,243.52,1.08704703]
[1757864636339,7.21,243.56,243.55,7.96704703]
[1757864636837,7.21,243.56,243.46,6.88]
[1757864637036,6.36,243.55,243.52,1.08704703]
[1757864637432,6.36,243.55,243.46,6.88]
[1757864637641,6.36,243.55,243.49,1.08704703]
[1757864638136,6.36,243.55,243.46,6.88]
[1757864638336,6.36,243.55,243.46,7.96704703]
[1757864641844,6.36,243.55,243.46,6.88]
[1757864643836,7.21,243.56,243.5,1.08704703]
[1757864644043,7.21,243.56,243.51,6.88]
[1757864644244,7.21,243.56,243.55,6.88]
[1757864647949,7.21,243.56,243.5,3.694]
[1757864647950,7.21,243.56,243.53,3.42690303]
[1757864648152,13.57,243.56,243.5,3.42690303]
[1757864648659,13.57,243.56,243.48,11.39395006]
[1757864648947,14.65704703,243.56,243.47,3.42690303]
[1757864649142,14.65704703,243.56,243.45,3.42690303]
[1757864649349,14.65704703,243.56,243.46,3.42690303]
[1757864650044,14.65704703,243.56,243.47,3.42690303]
[1757864650244,13.57,243.56,243.48,6.88]
[1757864650449,13.57,243.56,243.48,10.30690303]
[1757864650643,13.57,243.56,243.49,1.08704703]
[1757864651053,14.65704703,243.56,243.47,3.42690303]
[1757864651353,14.65704703,243.56,243.48,3.42690303]
[1757864652356,14.65704703,243.56,243.49,3.42690303]
[1757864652757,14.65704703,243.56,243.48,3.42690303]
[1757864653654,6.36,243.52,243.47,3.42690303]
[1757864653859,1.08704703,243.53,243.47,3.42690303]
[1757864654358,7.21,243.56,243.48,3.42690303]
[1757864654557,7.21,243.56,243.5,3.42690303]
[1757864655658,7.21,243.56,243.51,3.42690303]
[1757864656155,7.21,243.56,243.52,6.61]
[1757864656759,7.21,243.56,243.52,10.03690303]
[1757864659161,7.21,243.56,243.54,6.61]
[1757864659658,7.21,243.56,243.53,3.42690303]
[1757864659858,13.57,243.56,243.53,3.42690303]
[1757864660256,13.57,243.56,243.51,4.51395006]
[1757864660655,13.57,243.56,243.52,3.42690303]
[1757864661563,13.57,243.56,243.52,10.03690303]
[1757864662062,13.57,243.56,243.52,6.61]
[1757864662457,13.57,243.56,243.51,11.12395006]
[1757864662864,1.08704703,243.61,243.52,10.03690303]
[1757864663061,6.36,243.6,243.52,10.03690303]
[1757864663261,6.36,243.6,243.52,6.61]
[1757864663764,6.36,243.6,243.52,10.03690303]
[1757864664966,7.65,243.59,243.52,10.03690303]
[1757864666665,7.65,243.59,243.53,3.42690303]
[1757864666865,7.65,243.59,243.52,10.03690303]
[1757864667865,7.65,243.59,243.53,3.42690303]
[1757864670168,7.65,243.59,243.55,1.08704703]
[1757864670466,6.36,243.58,243.55,1.08704703]
[1757864670768,7.65,243.59,243.55,1.08704703]
[1757864671066,6.36,243.58,243.55,1.08704703]
[1757864672669,6.36,243.58,243.53,10.03690303]
[1757864674169,14.01,243.59,243.53,10.03690303]
[1757864678468,7.65,243.59,243.56,3.42690303]
[1757864678865,14.01,243.59,243.55,4.51395006]
[1757864679062,14.01,243.59,243.55,11.12395006]
[1757864679963,7.65,243.59,243.56,6.61]
[1757864680568,7.65,243.59,243.55,3.42690303]
[1757864680769,7.65,243.59,243.56,6.61]
[1757864681274,14.01,243.59,243.56,6.61]
[1757864682268,7.65,243.59,243.58,3.42690303]
[1757864682466,7.65,243.59,243.57,3.42690303]
[1757864682666,14.01,243.59,243.56,3.42690303]
[1757864683372,7.65,243.59,243.56,9.83690303]
[1757864684367,14.01,243.59,243.56,3.42690303]
[1757864685168,7.65,243.59,243.56,9.83690303]
[1757864686472,14.01,243.59,243.56,9.83690303]
[1757864686670,14.01,243.59,243.56,3.42690303]
[1757864687874,7.65,243.59,243.56,9.83690303]
[1757864690576,14.01,243.59,243.56,9.83690303]
[1757864691076,7.65,243.59,243.56,9.83690303]
[1757864692675,14.01,243.59,243.56,9.83690303]
[1757864693974,7.65,243.59,243.57,7.05]
[1757864694180,7.65,243.59,243.56,3.42690303]
[1757864694478,7.65,243.59,243.58,7.05]
[1757864696078,7.65,243.59,243.58,11.50697769]
[1757864697275,7.65,243.59,243.58,7.05]
[1757864697477,7.65,243.59,243.58,11.63354197]
[1757864697679,7.65,243.59,243.58,12.05354197]
[1757864700183,6.36,243.68,243.58,12.05354197]
[1757864700378,6.36,243.68,243.61,3.43723293]
[1757864700880,6.36,243.68,243.62,3.43723293]
[1757864701281,6.36,243.68,243.61,10.48723293]
[1757864702375,6.36,243.68,243.62,3.43723293]
[1757864702780,6.36,243.68,243.64,7.05]
[1757864704083,6.36,243.68,243.63,3.43723293]
[1757864704781,6.36,243.73,243.64,7.05]
[1757864705779,6.36,243.73,243.62,3.43723293]
[1757864707187,8.05818203,243.73,243.62,3.43723293]
[1757864707684,8.05818203,243.73,243.63,3.43723293]
[1757864707887,8.05818203,243.73,243.62,3.43723293]
[1757864708983,8.05818203,243.73,243.61,3.43723293]
[1757864709582,6.36,243.73,243.62,7.05]
[1757864710389,6.36,243.73,243.62,10.48723293]
[1757864711789,6.36,243.73,243.63,6.58]
[1757864716895,108.37,243.77,243.63,10.01723293]
[1757864717094,108.37,243.77,243.66,10.01723293]
[1757864717289,108.37,243.77,243.67,6.58]
[1757864718691,6.35,243.77,243.67,6.58]
[1757864718894,6.35,243.77,243.68,6.58]
[1757864720596,6.35,243.77,243.69,6.58]
[1757864721297,8.04818203,243.81,243.69,6.58]
[1757864721998,1.69818203,243.77,243.66,3.43723293]
[1757864722198,6.35,243.76,243.66,3.43723293]
[1757864723195,6.35,243.76,243.67,6.58]
[1757864723800,6.37,243.83,243.68,10.01723293]
[1757864723801,8.06818203,243.83,243.68,10.01723293]
[1757864724001,6.35,243.82,243.68,10.01723293]
[1757864724202,6.35,243.82,243.68,6.58]
[1757864730506,6.35,243.82,243.69,1.69818203]
[1757864730706,6.35,243.82,243.7,6.9]
[1757864733106,6.35,243.82,243.71,3.43723293]
[1757864733416,6.35,243.82,243.72,6.9]
[1757864733714,6.35,243.82,243.74,6.9]
[1757864735412,6.35,243.86,243.74,6.9]
[1757864735717,6.35,243.86,243.76,6.9]
[1757864737010,6.35,243.86,243.78,6.9]
[1757864737511,15.12,243.89,243.78,6.9]
[1757864737715,15.12,243.89,243.79,6.9]
[1757864738112,8.77,243.89,243.79,6.9]
[1757864738419,6.35,243.88,243.8,6.9]
[1757864739614,8.77,243.89,243.81,1.69818203]
[1757864739915,8.77,243.89,243.82,6.9]
[1757864744020,6.34,243.88,243.78,48.37]
[1757864744720,6.34,243.88,243.78,10.44723293]
[1757864745916,6.34,243.88,243.79,7.01]
[1757864747123,8.77,243.89,243.78,3.43723293]
[1757864747423,8.77,243.89,243.8,7.01]
[1757864749722,15.11,243.89,243.8,7.01]
[1757864749924,15.11,243.89,243.77,3.43723293]
[1757864750124,6.34,243.87,243.77,3.43723293]
[1757864750319,6.34,243.87,243.76,3.43723293]
[1757864750724,1.69818203,243.88,243.75,10.44723293]
[1757864750919,6.34,243.87,243.75,10.44723293]
[1757864751116,6.34,243.87,243.75,7.01]
[1757864753526,6.34,243.83,243.75,7.01]
[1757864753728,1.08514814,243.81,243.71,3.43723293]
[1757864753922,6.34,243.8,243.71,10.44723293]
[1757864755327,6.34,243.8,243.72,3.43723293]
[1757864756021,8.77,243.89,243.73,1.08514814]
[1757864756229,1.08514814,243.87,243.77,7.01]
[1757864756823,6.34,243.88,243.77,7.01]
[1757864757021,1.08514814,243.86,243.77,7.01]
[1757864757223,6.34,243.85,243.77,7.01]
[1757864760528,8.77,243.89,243.77,7.01]
[1757864760727,1.08514814,243.88,243.79,7.01]
[1757864760926,15.11,243.89,243.79,7.01]
[1757864761228,15.11,243.89,243.82,1.08514814]
[1757864761621,15.11,243.89,243.82,8.09514814]
[1757864761925,8.77,243.89,243.82,8.09514814]
[1757864762124,8.77,243.89,243.85,1.08514814]
[1757864763228,8.77,243.89,243.86,7.01]
[1757864763530,8.77,243.89,243.85,1.08514814]
[1757864764029,6.34,243.94,243.88,1.08514814]
[1757864764329,7.42514814,244.01,243.89,7.01]
[1757864765329,6.34,244.01,243.92,7.01]
[1757864765629,1.08514814,244.04,243.92,8.09514814]
[1757864765924,114.12581841,244.09,243.9,1.08514814]
[1757864765925,6.34,244.0,243.9,1.08514814]
[1757864766523,6.34,244.0,243.91,7.01]
[1757864767920,7.42514814,244.0,243.91,7.01]
[1757864768124,6.34,244.0,243.91,7.01]
[1757864769120,6.34,244.0,243.93,1.08514814]
[1757864769726,8.1,244.03,243.96,1.08514814]
[1757864772733,6.33,244.02,243.93,1.08514814]
[1757864776434,6.33,244.02,243.93,8.07514814]
[1757864776934,6.33,244.02,243.93,1.08514814]
[1757864778534,6.33,244.02,243.96,1.08514814]
[1757864779131,6.33,244.02,243.96,8.07514814]
[1757864780735,13.02,244.02,243.96,8.07514814]
[1757864781141,6.69,244.02,243.96,8.07514814]
[1757864781341,6.69,244.02,244.0,6.99]
[1757864783632,6.69,244.02,243.95,6.99]
[1757864783839,6.69,244.02,243.99,1.08514814]
[1757864784044,6.69,244.02,243.99,8.07514814]
[1757864784642,6.69,244.02,244.0,6.99]
[1757864785734,6.69,244.02,243.99,1.08514814]
[1757864785735,6.33,244.01,243.99,1.08514814]
[1757864785935,6.69,244.02,243.99,1.08514814]
[1757864786137,6.33,244.01,243.99,1.08514814]
[1757864786330,6.69,244.02,243.99,8.07514814]
[1757864786535,13.02,244.02,243.99,1.08514814]
[1757864788644,6.33,244.01,243.99,1.08514814]
[1757864789144,6.69,244.02,243.99,1.08514814]
[1757864789649,6.69,244.02,244.0,6.99]
[1757864789835,6.33,244.01,243.99,1.08514814]
[1757864791543,6.33,244.01,243.96,1.08514814]
[1757864791742,6.33,244.01,243.93,1.08514814]
[1757864792840,7.41514814,244.01,243.88,3.4162638]
[1757864793044,1.08514814,244.01,243.87,10.4062638]
[1757864793438,6.33,243.97,243.86,13.44998754]
[1757864793652,1.08514814,243.98,243.86,13.44998754]
[1757864793848,6.33,243.97,243.86,13.44998754]
[1757864794149,1.08514814,243.98,243.86,13.44998754]
[1757864794349,6.33,243.97,243.86,1.08514814]
[1757864795244,6.33,243.94,243.84,275.46]
[1757864795441,1.08514814,243.95,243.8,3.4162638]
[1757864795642,6.33,243.91,243.82,1.08514814]
[1757864798145,7.86,243.9,243.82,8.07514814]
[1757864800243,6.33,243.89,243.86,1.08514814]
[1757864800444,6.33,243.96,243.87,6.99]
[1757864800646,6.33,244.02,243.91,6.99]
[1757864800841,6.33,244.02,243.94,1.08514814]
[1757864803550,6.33,244.02,243.91,6.99]
[1757864803749,6.33,244.02,243.93,1.08514814]
[1757864804242,1.08514814,244.0,243.9,1.08514814]
[1757864804450,6.34,243.99,243.9,1.08514814]
[1757864804650,6.34,243.99,243.9,7.82514814]
[1757864804949,6.34,243.99,243.93,1.08514814]
[1757864805548,1.08514814,244.03,243.9,6.74]
[1757864805549,1.08514814,244.03,243.94,1.08514814]
[1757864805746,6.34,244.02,243.94,1.08514814]
[1757864806948,6.34,244.02,243.94,7.82514814]
[1757864808755,6.34,244.02,243.98,6.74]
[1757864809450,6.34,244.06,243.98,6.74]
[1757864813358,27.12514814,244.1,243.98,6.74]
[1757864813559,1.08514814,244.14,244.01,6.74]
[1757864813763,6.33,244.13,244.01,6.74]
[1757864815160,6.33,244.13,244.01,10.1562638]
[1757864815553,6.33,244.13,244.01,6.74]
[1757864815759,6.33,244.11,244.0,3.4162638]
[1757864815957,6.33,244.11,243.99,3.4162638]
[1757864816460,6.33,244.11,244.0,6.68]
[1757864816660,6.33,244.11,244.0,10.0962638]
[1757864817160,6.33,244.11,244.0,6.68]
[1757864817862,6.33,244.11,244.0,10.0962638]
[1757864818861,6.33,244.11,244.0,6.68]
[1757864820258,6.33,244.11,244.0,10.0962638]
[1757864820458,6.33,244.11,244.0,6.68]
[1757864820663,6.33,244.11,244.02,6.68]
[1757864821162,6.33,244.11,244.03,6.68]
[1757864821361,6.33,244.17,244.04,6.68]
[1757864821664,6.33,244.17,244.05,6.68]
[1757864823863,6.33,244.17,244.08,6.68]
[1757864828673,9.23,244.18,244.08,6.68]
[1757864830574,9.23,244.18,244.09,6.68]
[1757864833375,9.23,244.18,244.1,6.66]
[1757864834576,9.23,244.18,244.14,6.66]
[1757864837282,9.23,244.18,244.17,6.66]
[1757864837681,9.23,244.18,244.16,1.69130773]
[1757864838882,9.23,244.18,244.14,6.66]
[1757864839082,15.56,244.18,244.12,101.68]
[1757864841085,15.56,244.18,244.1,6.66]
[1757864841287,15.56,244.18,244.08,101.66]
[1757864841288,9.23,244.18,244.08,101.66]
[1757864841483,6.33,244.17,244.08,101.66]
[1757864841687,6.33,244.17,244.09,6.66]
[1757864844194,6.33,244.17,244.09,108.32]
[1757864844384,6.33,244.17,244.09,101.66]
[1757864844582,6.33,244.17,244.07,101.66]
[1757864844789,9.23,244.18,244.07,101.66]
[1757864844983,6.33,244.17,244.07,101.66]
[1757864845690,6.33,244.17,244.06,275.22]
[1757864845691,8.02130773,244.17,244.06,275.22]
[1757864845886,6.33,244.16,244.06,275.22]
[1757864846082,1.69130773,244.17,244.06,275.22]
[1757864846690,1.69130773,244.17,244.01,6.66]
[1757864846691,6.33,244.16,244.01,6.66]
[1757864847889,6.33,244.16,244.07,6.66]
[1757864848292,6.33,244.16,244.07,31.48]
[1757864851193,6.33,244.16,244.1,1.69130773]
[1757864851595,6.33,244.16,244.07,33.17130773]
[1757864851995,6.33,244.16,244.07,8.35130773]
[1757864852594,6.33,244.17,244.03,6.66]
[1757864857499,6.33,244.14,244.0,3.4162638]
[1757864857699,6.33,244.14,243.99,3.4162638]
[1757864858598,6.33,244.14,244.0,3.4162638]
[1757864858795,6.33,244.14,244.01,6.66]
[1757864862397,6.33,244.14,243.98,3.4162638]
[1757864862995,1.69130773,244.11,243.98,3.4162638]
[1757864863200,6.33,244.1,243.97,124.95228386]
[1757864863399,6.33,244.09,243.98,3.4162638]
[1757864863600,6.33,244.09,243.98,8.30130773]
[1757864863799,6.33,244.09,244.02,6.61]
[1757864865700,5.83,244.1,244.02,8.30130773]
[1757864866403,5.83,244.1,244.02,6.61]
[1757864867506,5.83,244.1,244.02,8.30130773]
[1757864868609,5.83,244.1,244.03,6.61]
[1757864870410,12.16,244.1,244.03,6.61]
[1757864871610,12.16,244.1,244.0,1.69130773]
[1757864871901,5.83,244.1,244.01,6.61]
[1757864875203,6.33,244.09,244.01,6.61]
[1757864875603,5.83,244.1,244.01,6.61]
[1757864875910,5.83,244.1,244.01,7.69250292]
[1757864876806,5.83,244.1,244.01,6.61]
[1757864877006,5.83,244.1,244.02,1.08250292]
[1757864877515,12.16,244.1,244.01,6.61]
[1757864879702,6.91250292,244.1,243.97,122.39852298]
[1757864879902,6.33,244.09,243.97,122.39852298]
[1757864880310,6.33,244.06,243.97,122.39852298]
[1757864880518,6.33,244.06,243.97,121.31602006]
[1757864880913,1.08250292,244.07,243.97,114.92602006]
[1757864881108,6.33,244.03,243.97,114.92602006]
[1757864882217,6.33,244.03,243.93,6.39]
[1757864882614,7.41250292,244.03,243.93,6.39]
[1757864884812,7.41250292,244.03,243.9,4.49876672]
[1757864885118,7.41250292,244.03,243.87,279.74354197]
[1757864885119,6.33,243.99,243.89,6.39]
[1757864886607,1.08250292,243.97,243.89,6.39]
[1757864886916,6.33,243.96,243.89,6.39]
[1757864890823,7.41250292,244.05,243.95,1.08250292]
[1757864892425,6.33,244.05,243.98,1.08250292]
[1757864893926,6.33,244.05,244.02,1.08250292]
[1757864894718,5.83,244.1,243.97,6.49]
[1757864894719,6.33,244.09,244.0,1.08250292]
[1757864896128,6.33,244.09,244.0,7.57250292]
[1757864898224,6.33,244.09,244.0,6.49]
[1757864898620,6.33,244.06,243.95,9.9062638]
[1757864898820,1.08250292,244.04,243.95,6.49]
[1757864899027,7.41250292,244.03,243.92,3.4162638]
[1757864899426,1.08250292,243.99,243.91,3.4162638]
[1757864899726,1.08250292,243.99,243.9,6.49]
[1757864903332,6.91,243.98,243.9,6.49]
[1757864903724,1.08250292,243.96,243.87,3.4162638]
[1757864904628,1.08250292,243.96,243.86,9.9062638]
[1757864905831,1.08250292,243.96,243.86,6.49]
[1757864907930,1.08250292,243.94,243.86,6.49]
[1757864910133,7.41250292,243.94,243.86,6.49]
[1757864912136,6.33,243.94,243.86,6.49]
[1757864913036,6.91,243.98,243.93,6.49]
[1757864913237,6.91,243.98,243.97,6.49]
[1757864913439,6.33,244.09,243.97,6.49]
[1757864913637,6.33,244.09,243.99,6.49]
[1757864914636,275.3,244.11,243.99,6.49]
[1757864916234,7.50250292,244.13,243.99,6.49]
[1757864916441,7.50250292,244.13,244.02,6.49]
[1757864917042,6.42,244.13,244.02,6.49]
[1757864921243,7.50250292,244.13,244.02,6.49]
[1757864922042,6.43,244.09,244.02,6.49]
[1757864927150,41.27250292,244.15,244.02,7.57250292]
[1757864928445,1.08250292,244.12,244.02,6.49]
[1757864928650,6.43,244.11,244.02,6.49]
[1757864929052,1.08250292,244.09,244.02,6.49]
[1757864931655,6.43,244.11,244.02,6.49]
[1757864931957,1.08250292,244.13,244.02,6.49]
[1757864935860,6.43,244.15,244.02,6.49]
[1757864936862,6.43,244.15,244.03,6.9]
[1757864942765,9.54132445,244.19,244.03,6.9]
[1757864942963,16.01132445,244.19,244.04,3.4162638]
[1757864943269,16.01132445,244.19,244.05,6.9]
[1757864950171,14.32,244.19,244.05,6.9]
[1757864950373,1.69132445,244.16,244.05,6.9]
[1757864950577,6.47,244.15,244.05,6.9]
[1757864952176,6.93,244.18,244.05,6.9]
[1757864952378,6.93,244.18,244.06,10.3562638]